bitfinex/quotes_SOLUSD_20250422
["timestamp","ask_amount","ask_price","bid_price","bid_amount"]
[1745289916515,20.54619342,138.54,138.49,56.62806148]
[1745289916720,7.21813194,138.54,138.5,56.62806148]
[1745289917107,7.21813194,138.54,138.51,13.32806148]
[1745289918010,7.21774722,138.55,138.51,56.62806148]
[1745289918535,90.21725076,138.56,138.52,56.62806148]
[1745289918912,90.21725076,138.56,138.52,43.3]
[1745289918913,103.54531224,138.56,138.52,43.3]
[1745289919927,90.21725076,138.56,138.52,13.32806148]
[1745289920115,90.21725076,138.56,138.52,56.62806148]
[1745289921134,90.21725076,138.56,138.53,13.32806148]
[1745289921637,90.21725076,138.56,138.52,13.47022305]
[1745289923138,83.0,138.56,138.53,13.32806148]
[1745289923840,7.21656924,138.57,138.53,13.32806148]
[1745289925157,20.54463072,138.57,138.52,13.47022305]
[1745289925823,20.54463072,138.57,138.52,0.14216157]
[1745289926024,20.54463072,138.57,138.52,13.47022305]
[1745289926343,7.21656924,138.57,138.53,13.32806148]
[1745289927828,7.21656924,138.57,138.54,0.14216157]
[1745289928035,7.21624603,138.58,138.55,13.32806148]
[1745289928351,7.21624603,138.58,138.54,13.47022305]
[1745289928529,7.21624603,138.58,138.52,43.3]
[1745289928530,20.54430751,138.58,138.52,43.3]
[1745289928842,7.21624603,138.58,138.53,13.32806148]
[1745289929040,13.32806148,138.57,138.52,13.32806148]
[1745289930849,7.21709006,138.56,138.52,13.32806148]
[1745289931064,13.32806148,138.55,138.51,43.3]
[1745289931242,13.32806148,138.53,138.49,43.3]
[1745289931442,13.32806148,138.53,138.5,0.14216157]
[1745289931745,13.32806148,138.53,138.49,43.3]
[1745289934045,7.21813194,138.54,138.48,13.47022306]
[1745289934232,13.32806148,138.53,138.48,13.47022306]
[1745289935156,7.21917412,138.52,138.48,56.77022306]
[1745289935738,7.21868338,138.53,138.5,0.14216157]
[1745289935945,7.21834064,138.54,138.51,13.32806148]
[1745289936147,7.21834064,138.54,138.51,56.62806148]
[1745289936564,7.21834064,138.54,138.51,43.3]
[1745289936948,7.21834064,138.54,138.51,56.62806148]
[1745289937261,38.58915683,138.56,138.51,56.62806148]
[1745289938042,38.58915683,138.56,138.52,0.14216157]
[1745289939846,13.32806148,138.55,138.51,0.14216157]
[1745289940673,7.21604849,138.58,138.54,56.62806148]
[1745289940972,7.21604849,138.58,138.56,56.77022305]
[1745289941336,7.21604849,138.58,138.55,43.3]
[1745289941650,20.54410997,138.58,138.55,43.3]
[1745289942368,20.54410997,138.58,138.54,43.3]
[1745289943367,7.21604849,138.58,138.54,43.3]
[1745289943580,7.2156937,138.59,138.56,56.62806148]
[1745289943752,0.063,138.6,138.58,56.62806148]
[1745289943960,0.063,138.6,138.59,43.3]
[1745289944356,20.60606869,138.6,138.57,43.3]
[1745289944568,7.27800721,138.6,138.57,43.3]
[1745289945254,20.60606869,138.6,138.56,43.3]
[1745289945445,20.60606869,138.6,138.56,56.62806148]
[1745289945446,7.27800721,138.6,138.56,56.62806148]
[1745289945852,7.27800721,138.6,138.57,0.14216157]
[1745289946071,0.063,138.6,138.58,18.64964886]
[1745289946277,0.063,138.6,138.59,75.41987191]
[1745289947549,0.063,138.6,138.55,43.3]
[1745289947765,0.063,138.6,138.57,43.3]
[1745289948275,0.063,138.6,138.57,56.62806148]
[1745289949370,0.063,138.6,138.58,0.14216157]
[1745289949872,0.063,138.6,138.59,43.44216157]
[1745289951077,0.063,138.6,138.59,56.77022305]
[1745289951463,0.063,138.6,138.59,75.41987191]
[1745289953181,0.063,138.6,138.59,77.01157191]
[1745289958771,0.063,138.6,138.59,159.61157191]
[1745289959186,0.063,138.63,138.62,44.64964886]
[1745289959365,0.063,138.63,138.62,137.12953339]
[1745289959783,0.063,138.63,138.62,138.12953339]
[1745289959988,0.063,138.64,138.63,0.14216157]
[1745289960178,0.063,138.64,138.63,88.74793339]
[1745289962065,0.063,138.66,138.65,18.79181043]
[1745289962271,0.063,138.66,138.65,114.71987191]
[1745289963271,0.063,138.67,138.65,137.81137163]
[1745289963473,0.063,138.67,138.66,41.09787191]
[1745289963777,0.063,138.69,138.68,45.79181043]
[1745289963983,0.063,138.69,138.68,157.71987191]
[1745289965202,0.063,138.71,138.69,18.79181043]
[1745289965369,0.063,138.71,138.7,46.44793339]
[1745289965569,0.063,138.71,138.7,45.44793339]
[1745289965787,0.063,138.71,138.7,33.11987191]
[1745289966199,0.063,138.75,138.74,69.3]
[1745289966383,0.063,138.75,138.74,120.96208462]
[1745289966797,0.063,138.75,138.74,117.41987191]
[1745289967099,0.063,138.75,138.74,98.77022305]
[1745289967395,0.063,138.75,138.74,98.62806148]
[1745289967701,0.063,138.75,138.74,98.77022305]
[1745289968399,0.063,138.75,138.74,117.41987191]
[1745289972197,0.063,138.75,138.74,85.3]
[1745289972573,0.063,138.75,138.73,43.3]
[1745289973606,0.063,138.75,138.73,56.62806148]
[1745289974596,0.063,138.75,138.74,56.77022305]
[1745289974784,0.063,138.75,138.74,43.3]
[1745289975897,0.063,138.75,138.73,43.3]
[1745289976407,0.063,138.75,138.73,56.62806148]
[1745289976587,0.063,138.75,138.74,56.62806148]
[1745289978290,0.063,138.75,138.74,43.3]
[1745289978882,0.063,138.75,138.74,56.62806148]
[1745289979600,0.063,138.75,138.74,56.77022305]
[1745289980890,0.063,138.75,138.74,101.41987191]
[1745289983385,0.063,138.75,138.74,158.01987191]
[1745289983619,0.063,138.77,138.76,88.09181043]
[1745289983915,0.063,138.77,138.76,117.37987191]
[1745289984116,0.063,138.77,138.76,91.37987191]
[1745289984408,0.063,138.77,138.76,173.97987191]
[1745289987810,0.063,138.77,138.76,174.97987191]
[1745289988404,0.063,138.77,138.76,188.30793339]
[1745289989214,0.063,138.78,138.77,33.11987191]
[1745289989514,0.063,138.78,138.77,117.16002517]
[1745289989716,0.063,138.78,138.77,130.48808665]
[1745289989921,0.063,138.78,138.77,146.44808665]
[1745289990098,0.063,138.78,138.77,145.44808665]
[1745289990294,0.063,138.78,138.77,146.44808665]
[1745289991712,0.063,138.78,138.77,175.42002517]
[1745289991890,0.063,138.78,138.77,173.97987191]
[1745289992296,0.063,138.78,138.77,174.97987191]
[1745289992798,0.063,138.78,138.77,188.30793339]
[1745289995218,0.063,138.78,138.77,187.30793339]
[1745289995410,0.063,138.78,138.77,188.30793339]
[1745289996013,0.063,138.78,138.77,173.83771034]
[1745289997512,0.063,138.78,138.77,173.97987191]
[1745289999202,0.063,138.78,138.77,187.30793339]
[1745289999828,0.063,138.78,138.77,188.30793339]
[1745290001707,0.063,138.78,138.77,173.97987191]
[1745290002024,0.063,138.78,138.77,174.97987191]
[1745290002820,0.063,138.78,138.77,188.30793339]
[1745290003623,0.063,138.78,138.77,187.30793339]
[1745290003923,0.063,138.78,138.77,188.30793339]
[1745290004825,0.063,138.78,138.77,174.97987191]
[1745290005626,0.063,138.78,138.77,195.62987191]
[1745290005924,0.063,138.79,138.78,0.14216157]
[1745290006131,0.063,138.79,138.78,47.88793502]
[1745290006424,0.03,138.82,138.78,129.48793502]
[1745290006730,0.063,138.85,138.83,56.62806148]
[1745290006932,0.063,138.85,138.83,56.77022305]
[1745290008230,0.063,138.85,138.83,75.41987191]
[1745290009030,0.063,138.85,138.83,158.01987191]
[1745290010016,0.063,138.85,138.84,0.14216157]
[1745290010217,0.03,138.88,138.87,61.94964886]
[1745290010511,0.03,138.88,138.87,75.41987191]
[1745290013441,0.03,138.88,138.87,184.01987191]
[1745290013605,0.03,138.88,138.87,171.34793339]
[1745290014823,0.03,138.88,138.87,172.34793339]
[1745290016145,0.03,138.88,138.87,171.34793339]
[1745290016445,0.03,138.88,138.87,157.87771034]
[1745290016621,0.03,138.88,138.87,183.87771034]
[1745290017527,0.03,138.88,138.87,184.01987191]
[1745290017719,0.03,138.88,138.87,158.01987191]
[1745290017940,0.03,138.88,138.87,184.01987191]
[1745290018236,0.03,138.88,138.87,183.87771034]
[1745290018446,0.03,138.88,138.87,184.01987191]
[1745290019441,0.03,138.88,138.87,197.34793339]
[1745290020124,0.03,138.88,138.87,171.34793339]
[1745290020522,0.03,138.88,138.87,158.01987191]
[1745290023139,0.03,138.88,138.87,171.34793339]
[1745290023556,0.03,138.88,138.87,158.01987191]
[1745290023717,0.03,138.88,138.87,184.01987191]
[1745290023926,1.6667,138.88,138.87,75.27771034]
[1745290024140,8.86716082,138.88,138.87,75.27771034]
[1745290024348,22.1952223,138.88,138.87,43.3]
[1745290024516,40.19637437,138.88,138.8,13.32806148]
[1745290024721,13.32806148,138.86,138.81,56.62806148]
[1745290024945,13.32806148,138.86,138.82,0.14216157]
[1745290025154,13.32806148,138.86,138.81,43.3]
[1745290025321,13.32806148,138.86,138.82,43.3]
[1745290025646,7.20201656,138.85,138.82,43.3]
[1745290026426,7.20201656,138.85,138.83,56.62806148]
[1745290026625,7.20201656,138.85,138.84,43.44216157]
[1745290026848,7.20097933,138.87,138.84,56.77022305]
[1745290027335,7.20097933,138.87,138.84,43.44216157]
[1745290027942,20.52904081,138.87,138.85,43.3]
[1745290029236,20.52904081,138.87,138.84,0.14216157]
[1745290029438,7.20097933,138.87,138.84,0.14216157]
[1745290030247,7.20097933,138.87,138.85,43.3]
[1745290030456,20.52904081,138.87,138.85,43.3]
[1745290031450,20.52904081,138.87,138.84,0.14216157]
[1745290031851,38.53148914,138.87,138.83,43.3]
[1745290032151,7.20201656,138.85,138.83,43.3]
[1745290032459,13.32806148,138.84,138.83,43.3]
[1745290032825,38.53511945,138.85,138.83,43.3]
[1745290033338,38.53511945,138.85,138.81,43.3]
[1745290034535,13.32806148,138.82,138.81,43.3]
[1745290034757,13.32806148,138.82,138.8,43.3]
[1745290034935,13.32806148,138.81,138.77,0.063]
[1745290035133,13.32806148,138.79,138.77,0.063]
[1745290035447,13.32806148,138.78,138.77,0.063]
[1745290035751,14.97756148,138.78,138.77,0.063]
[1745290035954,1.6495,138.78,138.77,0.063]
[1745290036553,8.85514922,138.78,138.77,0.063]
[1745290038554,22.1832107,138.78,138.77,0.063]
[1745290039245,7.20409192,138.81,138.78,43.3]
[1745290039451,7.20409192,138.81,138.8,43.3]
[1745290040563,7.20409192,138.81,138.78,43.3]
[1745290040736,13.32806148,138.8,138.78,43.3]
[1745290040928,13.32806148,138.79,138.78,43.3]
[1745290041126,7.20564922,138.78,138.77,0.063]
[1745290042861,7.20530653,138.79,138.77,0.063]
[1745290043058,7.20475621,138.8,138.78,43.3]
[1745290043246,7.20409192,138.81,138.78,43.3]
[1745290043424,8.75358459,138.82,138.8,43.3]
[1745290043632,7.20253529,138.84,138.81,0.14216157]
[1745290043945,7.20253529,138.84,138.82,56.62806148]
[1745290044257,1.5499,138.85,138.83,0.14216157]
[1745290044475,7.20097933,138.87,138.84,56.62806148]
[1745290044849,7.20097933,138.87,138.84,43.3]
[1745290045244,7.20097933,138.87,138.84,56.62806148]
[1745290046068,7.20097933,138.87,138.85,43.3]
[1745290047072,7.20097933,138.87,138.84,43.3]
[1745290047570,7.20097933,138.87,138.84,56.62806148]
[1745290048662,7.20097933,138.87,138.85,43.3]
[1745290048972,20.52904081,138.87,138.83,43.44216157]
[1745290049148,20.52904081,138.87,138.81,26.0]
[1745290049149,13.32806148,138.86,138.81,26.0]
[1745290049348,13.32806148,138.85,138.81,26.0]
[1745290049565,7.20253529,138.84,138.81,26.0]
[1745290049765,7.20253529,138.84,138.81,0.14216157]
[1745290050069,7.20253529,138.84,138.81,56.77022305]
[1745290050673,7.20253529,138.84,138.82,56.62806148]
[1745290051267,7.20253529,138.84,138.82,43.3]
[1745290052072,7.20253529,138.84,138.82,56.62806148]
[1745290052260,7.20253529,138.84,138.82,43.3]
[1745290054080,7.20201656,138.85,138.82,43.3]
[1745290054371,7.20201656,138.85,138.82,56.62806148]
[1745290055782,7.20149791,138.86,138.82,56.62806148]
[1745290056977,7.20149791,138.86,138.84,43.3]
[1745290057678,7.20149791,138.86,138.84,56.62806148]
[1745290057879,7.23046082,138.88,138.84,13.32806148]
[1745290058071,20.5585223,138.88,138.85,43.3]
[1745290058383,7.23046082,138.88,138.85,43.3]
[1745290059291,7.23046082,138.88,138.85,56.62806148]
[1745290059460,7.23046082,138.88,138.87,43.3]
[1745290059663,20.5585223,138.88,138.87,43.3]
[1745290060553,38.55967437,138.88,138.84,43.3]
[1745290060771,13.32806148,138.86,138.84,43.3]
[1745290061277,38.55967437,138.88,138.84,56.62806148]
[1745290061467,25.23161289,138.88,138.84,56.62806148]
[1745290061961,25.23161289,138.88,138.85,43.3]
[1745290062175,7.23046082,138.88,138.85,56.62806148]
[1745290062685,7.23046082,138.88,138.85,43.3]
[1745290062868,20.5585223,138.88,138.85,43.3]
[1745290063382,20.5585223,138.88,138.86,43.3]
[1745290063693,38.55967437,138.88,138.86,43.3]
[1745290063875,13.32806148,138.87,138.86,43.3]
[1745290064386,13.32806148,138.87,138.82,43.3]
[1745290064691,13.32806148,138.86,138.82,43.3]
[1745290065767,7.20201656,138.85,138.82,43.3]
[1745290067396,25.20705797,138.85,138.82,43.3]
[1745290068090,7.20201656,138.85,138.82,43.3]
[1745290068280,7.20201656,138.85,138.82,56.62806148]
[1745290068466,7.20201656,138.85,138.82,43.3]
[1745290070098,20.53007804,138.85,138.82,43.3]
[1745290070613,38.53511945,138.85,138.82,43.3]
[1745290070895,38.53511945,138.85,138.81,43.3]
[1745290072798,25.20705797,138.85,138.82,43.3]
[1745290073185,38.53511945,138.85,138.82,43.3]
[1745290073385,7.20201656,138.85,138.82,56.62806148]
[1745290073794,7.20201656,138.85,138.82,43.3]
[1745290075201,39.32806148,138.83,138.77,0.063]
[1745290075404,13.32806148,138.78,138.77,0.063]
[1745290076298,13.32806148,138.79,138.77,0.063]
[1745290077399,7.20564922,138.78,138.77,0.063]
[1745290077717,13.32806148,138.8,138.77,43.363]
[1745290077718,7.20461095,138.8,138.77,43.363]
[1745290078505,7.20461095,138.8,138.77,56.69106148]
[1745290078696,7.20461095,138.8,138.78,43.3]
[1745290078881,7.20461095,138.8,138.78,56.62806148]
[1745290079081,7.20305409,138.83,138.8,43.3]
[1745290079482,7.20305409,138.83,138.8,56.62806148]
[1745290079682,25.21068932,138.83,138.8,56.62806148]
[1745290081304,18.00763523,138.83,138.8,56.62806148]
[1745290081503,18.00763523,138.83,138.8,43.3]
[1745290083406,25.21068932,138.83,138.81,0.14216157]
[1745290084406,7.20305409,138.83,138.82,43.44216157]
[1745290084619,7.20305409,138.83,138.82,56.77022305]
[1745290085309,13.32806148,138.87,138.83,0.14216157]
[1745290085688,0.03,138.88,138.83,0.14216157]
[1745290085985,13.32806148,138.87,138.83,0.14216157]
[1745290086194,13.35806148,138.88,138.84,43.3]
[1745290087620,38.53148914,138.87,138.85,43.3]
[1745290088685,38.53148914,138.87,138.83,43.44216157]
[1745290090008,38.53148914,138.87,138.83,0.14216157]
[1745290090310,13.32806148,138.85,138.82,43.3]
[1745290090484,13.32806148,138.84,138.82,43.3]
[1745290091308,25.20342766,138.87,138.81,43.3]
[1745290091611,13.32806148,138.84,138.83,43.3]
[1745290092189,20.53059677,138.84,138.83,43.3]
[1745290092595,20.53059677,138.84,138.81,43.3]
[1745290092816,13.32806148,138.82,138.81,43.3]
[1745290093024,13.32806148,138.82,138.77,0.063]
[1745290093203,13.32806148,138.8,138.77,0.063]
[1745290093406,13.32806148,138.81,138.77,0.063]
[1745290093610,32.91237352,138.84,138.77,0.063]
[1745290093912,13.32806148,138.81,138.77,0.063]
[1745290094212,68.92504998,138.84,138.77,13.39106148]
[1745290094416,13.32806148,138.82,138.77,13.39106148]
[1745290094715,26.81137352,138.84,138.79,13.32806148]
[1745290094899,38.536935,138.84,138.8,13.32806148]
[1745290095217,38.536935,138.84,138.79,13.47022305]
[1745290096111,25.20887352,138.84,138.79,13.47022305]
[1745290096320,13.32806148,138.85,138.81,0.14216157]
[1745290098317,7.20253529,138.84,138.81,13.47022305]
[1745290098697,7.20253529,138.84,138.82,13.32806148]
[1745290099217,7.20149791,138.86,138.83,0.14216157]
[1745290101632,7.20149791,138.86,138.83,13.47022305]
[1745290101813,7.20149791,138.86,138.84,13.32806148]
[1745290102211,7.20120071,138.87,138.84,13.32806148]
[1745290102526,13.32806148,138.87,138.83,0.14216157]
[1745290102837,13.32806148,138.86,138.83,0.14216157]
[1745290103032,25.23161289,138.88,138.83,0.14216157]
[1745290103221,13.32806148,138.87,138.83,0.14216157]
[1745290103529,25.23161289,138.88,138.83,0.14216157]
[1745290103530,38.55967437,138.88,138.83,0.14216157]
[1745290103827,38.55967437,138.88,138.83,13.47022305]
[1745290104330,7.23046082,138.88,138.83,0.14216157]
[1745290104545,7.23046082,138.88,138.85,0.14216157]
[1745290105416,0.03,138.88,138.85,13.47022305]
[1745290106730,13.35806148,138.88,138.85,0.14216157]
[1745290107641,13.32806148,138.86,138.81,26.0]
[1745290107814,7.20097933,138.87,138.81,18.64964886]
[1745290107815,13.32806148,138.85,138.81,18.64964886]
[1745290108018,13.32806148,138.83,138.77,1.6702]
[1745290108222,13.32806148,138.81,138.77,0.063]
[1745290108519,115.0513,138.85,138.77,0.20516157]
[1745290108520,13.32806148,138.8,138.77,0.20516157]
[1745290108726,13.32806148,138.82,138.77,13.53322305]
[1745290108943,13.32806148,138.84,138.8,0.14216157]
[1745290109435,13.32806148,138.85,138.8,13.47022305]
[1745290109620,20.53007804,138.85,138.82,0.14216157]
[1745290110237,7.20201656,138.85,138.82,0.14216157]
[1745290110541,20.53007804,138.85,138.82,0.14216157]
[1745290110733,7.20201656,138.85,138.82,0.14216157]
[1745290112645,20.53007804,138.85,138.8,13.47022305]
[1745290115450,7.20097933,138.87,138.84,13.32806148]
[1745290115623,7.20097933,138.87,138.85,13.32806148]
[1745290115824,7.20097933,138.87,138.84,13.47022305]
[1745290116024,20.52904081,138.87,138.82,18.64964886]
[1745290116250,7.20097933,138.87,138.83,0.14216157]
[1745290116549,7.20097933,138.87,138.84,13.32806148]
[1745290116844,7.20097933,138.87,138.83,0.14216157]
[1745290117346,7.20097933,138.87,138.83,13.47022305]
[1745290118646,7.20097933,138.87,138.85,13.32806148]
[1745290119435,0.03,138.88,138.85,13.32806148]
[1745290119842,0.03,138.88,138.8,141.78]
[1745290120043,13.32806148,138.86,138.81,32.11987191]
[1745290120230,13.32806148,138.86,138.81,31.97771034]
[1745290120432,13.32806148,138.87,138.81,18.64964886]
[1745290120647,13.32806148,138.86,138.82,0.14216157]
[1745290121054,13.32806148,138.87,138.82,13.47022305]
[1745290121535,7.20149791,138.86,138.82,13.47022305]
[1745290121853,20.52955939,138.86,138.82,0.14216157]
[1745290122255,38.53330416,138.86,138.82,0.14216157]
[1745290122739,13.32806148,138.85,138.82,0.14216157]
[1745290123959,7.20253529,138.84,138.82,0.14216157]
[1745290124459,7.20097933,138.87,138.82,13.47022305]
[1745290124757,13.32806148,138.86,138.82,0.14216157]
[1745290124958,13.32806148,138.85,138.82,0.14216157]
[1745290125760,25.20342766,138.87,138.82,0.14216157]
[1745290125960,13.32806148,138.86,138.82,0.14216157]
[1745290126262,13.32806148,138.85,138.82,0.14216157]
[1745290128044,13.32806148,138.86,138.82,0.14216157]
[1745290128246,38.53148914,138.87,138.82,13.47022305]
[1745290130268,13.32806148,138.85,138.82,0.14216157]
[1745290131878,7.20253529,138.84,138.82,0.14216157]
[1745290133171,7.20201656,138.85,138.82,0.14216157]
[1745290134049,13.32806148,138.83,138.77,32.04071034]
[1745290134257,13.32806148,138.82,138.77,32.04071034]
[1745290134478,13.32806148,138.81,138.77,18.71264886]
[1745290134884,13.32806148,138.81,138.78,0.14216157]
[1745290135375,7.20461095,138.8,138.78,0.14216157]
[1745290136176,7.20305409,138.83,138.79,13.32806148]
[1745290136357,20.53111557,138.83,138.78,56.77022305]
[1745290136675,7.20305409,138.83,138.8,13.47022305]
[1745290136849,7.20305409,138.83,138.8,0.14216157]
[1745290137983,7.20305409,138.83,138.78,0.14216157]
[1745290137984,20.53111557,138.83,138.78,0.14216157]
[1745290138188,13.32806148,138.82,138.78,0.14216157]
[1745290138358,38.5387508,138.83,138.78,13.47022305]
[1745290140980,13.32806148,138.82,138.78,0.14216157]
[1745290141282,25.21068932,138.83,138.78,13.47022305]
[1745290141461,25.21068932,138.83,138.79,18.64964886]
[1745290141779,25.21068932,138.83,138.8,0.14216157]
[1745290142271,25.21068932,138.83,138.77,0.063]
[1745290142272,13.32806148,138.81,138.77,0.063]
[1745290142451,25.21068932,138.83,138.79,13.32806148]
[1745290142654,25.21068932,138.83,138.8,0.14216157]
[1745290143274,25.21068932,138.83,138.78,31.97771034]
[1745290143465,38.5387508,138.83,138.79,0.14216157]
[1745290144585,25.21068932,138.83,138.79,13.47022305]
[1745290148476,25.21068932,138.83,138.8,13.32806148]
[1745290149278,7.20253529,138.84,138.81,0.14216157]
[1745290151580,7.20253529,138.84,138.79,32.11987191]
[1745290151770,20.53059677,138.84,138.79,32.11987191]
[1745290152166,7.20253529,138.84,138.79,32.11987191]
[1745290152373,20.53059677,138.84,138.79,32.11987191]
[1745290152879,25.20887352,138.84,138.79,32.11987191]
[1745290154177,7.20253529,138.84,138.81,0.14216157]
[1745290154386,7.20253529,138.84,138.82,13.32806148]
[1745290154573,7.20253529,138.84,138.81,32.11987191]
[1745290154766,7.20201656,138.85,138.81,32.11987191]
[1745290155477,13.32806148,138.84,138.81,0.14216157]
[1745290155684,25.20705797,138.85,138.82,13.32806148]
[1745290155988,25.20705797,138.85,138.81,13.47022305]
[1745290156687,25.20357185,138.87,138.81,13.47022305]
[1745290156894,38.53163333,138.87,138.82,13.32806148]
[1745290157204,25.20357185,138.87,138.82,13.32806148]
[1745290157496,13.32806148,138.86,138.81,13.47022305]
[1745290158065,13.32806148,138.85,138.81,0.14216157]
[1745290158788,38.536935,138.84,138.79,14.90306148]
[1745290158966,38.536935,138.84,138.79,33.55271034]
[1745290159294,25.20887352,138.84,138.8,13.47022305]
[1745290159897,7.20253529,138.84,138.81,13.32806148]
[1745290160196,7.20253529,138.84,138.8,32.11987191]
[1745290161278,7.20253529,138.84,138.8,27.28671106]
[1745290161476,7.20253529,138.84,138.81,8.49490063]
[1745290162361,7.20253529,138.84,138.8,27.28671106]
[1745290162781,7.20253529,138.84,138.81,8.49490063]
[1745290163392,7.20201656,138.85,138.81,8.49490063]
[1745290163600,7.20201656,138.85,138.8,27.28671106]
[1745290164104,7.20201656,138.85,138.8,18.79181043]
[1745290164395,7.20201656,138.85,138.8,27.28671106]
[1745290164692,33.7019586,138.85,138.8,27.28671106]
[1745290168495,25.20705797,138.85,138.8,27.28671106]
[1745290168798,25.20705797,138.85,138.82,0.14216157]
[1745290170288,7.20201656,138.85,138.82,0.14216157]
[1745290171499,8.49490063,138.86,138.82,0.14216157]
[1745290171711,0.03,138.88,138.84,8.49490063]
[1745290171883,0.03,138.88,138.87,53.28671106]
[1745290172077,0.03,138.88,138.87,61.26631358]
[1745290172275,0.063,138.89,138.88,62.09181043]
[1745290172491,0.063,138.89,138.88,81.8878637]
[1745290172800,0.063,138.89,138.88,90.38276433]
[1745290173099,0.063,138.89,138.88,70.58671106]
[1745290173282,0.063,138.89,138.88,62.09181043]
[1745290173484,0.063,138.89,138.88,75.34793917]
[1745290174096,0.063,138.89,138.88,88.60406791]
[1745290174700,0.063,138.89,138.88,101.32960857]
[1745290177107,0.063,138.89,138.88,58.02960857]
[1745290178191,0.063,138.89,138.87,3.53071016]
[1745290178502,0.063,138.89,138.86,18.64964886]
[1745290179001,0.063,138.89,138.87,13.39829031]
[1745290179215,0.063,138.89,138.86,31.9057776]
[1745290179614,0.063,138.89,138.87,0.14216157]
[1745290180109,0.063,138.89,138.86,31.9057776]
[1745290180416,0.063,138.89,138.87,0.14216157]
[1745290182314,0.063,138.89,138.88,13.39829031]
[1745290183718,0.063,138.89,138.88,32.04793917]
[1745290186593,0.063,138.89,138.88,18.79181043]
[1745290187116,0.063,138.89,138.88,32.04793917]
[1745290187714,0.063,138.89,138.88,0.14216157]
[1745290188618,0.063,138.89,138.86,31.9057776]
[1745290189005,13.31912874,138.89,138.84,13.25612874]
[1745290189312,13.31912874,138.89,138.85,0.14216157]
[1745290189819,7.20046082,138.88,138.85,0.14216157]
[1745290190114,7.20046082,138.88,138.84,13.25612874]
[1745290190308,7.20046082,138.88,138.85,0.14216157]
[1745290191110,13.25612874,138.87,138.84,0.14216157]
[1745290192320,7.20149791,138.86,138.84,0.14216157]
[1745290196406,7.20097933,138.87,138.84,0.14216157]
[1745290196608,20.45710807,138.87,138.84,0.14216157]
[1745290196818,13.25612874,138.85,138.8,18.71264886]
[1745290197013,13.25612874,138.85,138.8,31.9687776]
[1745290197312,8.49406112,138.86,138.81,8.63622269]
[1745290197515,8.49406112,138.86,138.81,8.49406112]
[1745290198322,8.49406112,138.85,138.81,8.63622269]
[1745290198522,7.20253529,138.84,138.81,0.14216157]
[1745290200100,7.20253529,138.84,138.81,8.63622269]
[1745290200615,7.20168486,138.86,138.83,8.49406112]
[1745290201117,7.20168486,138.86,138.82,8.63622269]
[1745290201311,7.20168486,138.86,138.82,13.41200223]
[1745290202228,13.26984066,138.85,138.81,0.14216157]
[1745290202927,7.20253529,138.84,138.81,0.14216157]
[1745290203829,7.20253529,138.84,138.81,13.41200223]
[1745290204340,7.20222453,138.85,138.83,0.14216157]
[1745290205438,7.20149791,138.86,138.83,0.14216157]
[1745290206138,38.47508334,138.86,138.82,0.14216157]
[1745290206434,25.20524268,138.86,138.82,13.41200223]
[1745290209045,7.20149791,138.86,138.82,13.41200223]
[1745290213813,13.26984066,138.83,138.8,0.063]
[1745290214017,20.47341363,138.82,138.8,0.063]
[1745290214912,105.4599,138.85,138.8,13.33284066]
[1745290214913,7.20253529,138.84,138.8,13.33284066]
[1745290215118,20.47237595,138.84,138.8,0.063]
[1745290215637,13.26984066,138.83,138.8,0.063]
[1745290215941,20.47237595,138.84,138.8,0.063]
[1745290216439,7.20357297,138.82,138.8,0.063]
[1745290217126,7.20357297,138.82,138.8,0.20516157]
[1745290217526,7.20305409,138.83,138.8,0.20516157]
[1745290218448,20.47289475,138.83,138.8,0.20516157]
[1745290218631,7.20305409,138.83,138.8,0.20516157]
[1745290221652,13.26984066,138.81,138.8,0.063]
[1745290222445,7.20409192,138.81,138.8,0.063]
[1745290222622,7.20253529,138.84,138.8,13.47500223]
[1745290222826,7.20253529,138.84,138.81,13.26984066]
[1745290223141,25.20887352,138.84,138.8,13.33284066]
[1745290223335,7.20253529,138.84,138.81,8.63749763]
[1745290225526,7.20253529,138.84,138.81,0.14216157]
[1745290226027,15.69787135,138.84,138.8,8.55833606]
[1745290226227,15.69787135,138.84,138.8,0.20516157]
[1745290226459,8.49533606,138.82,138.8,0.063]
[1745290226753,15.69942798,138.81,138.8,0.063]